bitfinex/quotes_SOLUSD_20250406
["timestamp","ask_amount","ask_price","bid_price","bid_amount"]
[1743920325039,85.22455624,120.55,120.5,17.16354095]
[1743920325240,16.67405624,120.53,120.5,0.063]
[1743920325436,16.67405624,120.52,120.5,0.063]
[1743920325836,16.67405624,120.51,120.5,0.063]
[1743920327343,16.67405624,120.52,120.5,0.063]
[1743920330541,16.67405624,120.51,120.5,0.063]
[1743920334845,16.67405624,120.52,120.5,0.063]
[1743920335024,16.67405624,120.53,120.5,0.063]
[1743920335232,16.67405624,120.54,120.5,16.73705624]
[1743920335437,85.22455624,120.55,120.5,16.73705624]
[1743920335740,16.67405624,120.54,120.5,16.73705624]
[1743920342452,85.22455624,120.55,120.5,16.73705624]
[1743920344542,68.5505,120.55,120.53,16.67405624]
[1743920344740,0.03,120.55,120.54,16.67405624]
[1743920345078,0.03,120.55,120.54,37.29808981]
[1743920346562,0.03,120.55,120.54,103.99431477]
[1743920346762,0.03,120.57,120.55,19.07613357]
[1743920346968,0.03,120.57,120.56,16.67405624]
[1743920354281,0.03,120.57,120.56,42.95837938]
[1743920354458,0.03,120.57,120.56,61.75018981]
[1743920369800,0.03,120.57,120.56,35.75018981]
[1743920370004,0.03,120.61,120.6,35.75018981]
[1743920381601,0.03,120.61,120.56,18.79181043]
[1743920381922,0.03,120.61,120.59,16.67405624]
[1743920382095,0.03,120.61,120.58,16.67405624]
[1743920382625,0.03,120.61,120.59,16.67405624]
[1743920383423,0.03,120.61,120.6,16.67405624]
[1743920386912,0.03,120.61,120.6,35.75018981]
[1743920394923,0.03,120.61,120.6,19.07613357]
[1743920395225,0.03,120.61,120.59,16.67405624]
[1743920396026,0.03,120.61,120.58,19.07613357]
[1743920396206,0.03,120.61,120.6,42.67405624]
[1743920401413,0.03,120.61,120.58,23.63405624]
[1743920401613,18.21215624,120.61,120.57,16.67405624]
[1743920402024,1.5381,120.61,120.57,16.67405624]
[1743920402714,1.5381,120.61,120.58,16.67405624]
[1743920403934,1.5381,120.61,120.58,42.67405624]
[1743920407233,1.5381,120.61,120.58,26.0]
[1743920407536,18.21215624,120.61,120.56,35.81318981]
[1743920407843,16.67405624,120.6,120.56,0.063]
[1743920409436,16.67405624,120.59,120.56,0.063]
[1743920409635,16.67405624,120.58,120.56,0.063]
[1743920410140,16.67405624,120.6,120.56,0.063]
[1743920410346,16.67405624,120.6,120.56,16.73705624]
[1743920414341,16.67405624,120.6,120.56,0.063]
[1743920415150,16.67405624,120.57,120.56,0.063]
[1743920415737,16.67405624,120.58,120.56,0.063]
[1743920415939,85.19455624,120.59,120.56,0.063]
[1743920416951,68.5205,120.59,120.56,0.063]
[1743920417246,68.5205,120.59,120.56,16.73705624]
[1743920417927,68.5205,120.59,120.56,0.063]
[1743920420452,85.19455624,120.59,120.56,0.063]
[1743920424953,85.22455624,120.59,120.56,0.063]
[1743920425141,16.67405624,120.58,120.56,0.063]
[1743920425744,85.22455624,120.59,120.56,0.063]
[1743920427660,68.5505,120.59,120.56,0.063]
[1743920431081,68.5505,120.59,120.56,16.73705624]
[1743920431564,68.5505,120.59,120.57,16.67405624]
[1743920439770,68.5505,120.59,120.56,16.73705624]
[1743920441086,68.5505,120.59,120.57,16.67405624]
[1743920441283,0.03,120.59,120.58,42.67405624]
[1743920441750,0.03,120.59,120.58,26.0]
[1743920453878,0.03,120.59,120.57,16.67405624]
[1743920459964,0.03,120.59,120.57,16.17405624]
[1743920464079,0.03,120.59,120.56,26.063]
[1743920468373,0.03,120.59,120.56,42.73705624]
[1743920469494,0.03,120.59,120.56,26.063]
[1743920474198,0.03,120.59,120.56,42.73705624]
[1743920475176,0.03,120.59,120.56,26.063]
[1743920475882,16.70405624,120.59,120.56,26.063]
[1743920477501,16.70405624,120.59,120.56,0.063]
[1743920478995,16.67405624,120.58,120.56,0.063]
[1743920479882,16.67405624,120.57,120.56,0.063]
[1743920481599,16.67405624,120.58,120.56,0.063]
[1743920487211,16.67405624,120.57,120.56,0.063]
[1743920488607,41.55588981,120.57,120.56,0.063]
[1743920489100,22.90624095,120.57,120.56,0.063]
[1743920489806,16.67405624,120.57,120.56,0.063]
[1743920497216,41.55588981,120.57,120.56,0.063]
[1743920507217,48.51588981,120.57,120.56,0.063]
[1743920516414,48.54588981,120.57,120.56,0.063]
[1743920521239,48.54588981,120.57,120.5,0.063]
[1743920521415,16.67405624,120.51,120.5,0.063]
[1743920523240,22.48265624,120.51,120.5,0.063]
[1743920529335,16.67405624,120.51,120.5,0.063]
[1743920540646,22.48265624,120.51,120.5,0.063]
[1743920558866,16.67405624,120.51,120.5,0.063]
[1743920559165,16.67405624,120.52,120.5,0.063]
[1743920559369,217.99405624,120.53,120.5,0.063]
[1743920559752,16.67405624,120.52,120.5,0.063]
[1743920565265,194.36,120.53,120.5,0.063]
[1743920565457,194.36,120.53,120.5,23.03795624]
[1743920570569,81.83,120.55,120.51,16.67405624]
[1743920570768,81.83,120.55,120.52,1.5858]
[1743920573976,98.50405624,120.55,120.52,1.5858]
[1743920576160,81.83,120.55,120.52,18.25985624]
[1743920577265,81.83,120.55,120.52,1.5858]
[1743920577575,81.83,120.55,120.53,16.67405624]
[1743920577968,81.83,120.55,120.54,6.0053]
[1743920586768,0.03,120.55,120.54,43.34378981]
[1743920587169,0.03,120.55,120.54,24.69414095]
[1743920587375,0.03,120.55,120.54,43.34378981]
[1743920594278,0.03,120.55,120.54,43.40678981]
[1743920598507,0.03,120.55,120.54,16.73705624]
[1743920598685,0.03,120.55,120.54,0.063]
[1743920599090,16.70405624,120.55,120.54,0.063]
[1743920606711,22.51075624,120.55,120.54,0.063]
[1743920607922,16.70405624,120.55,120.54,0.063]
[1743920609828,22.51075624,120.55,120.54,0.063]
[1743920613519,16.70405624,120.55,120.54,0.063]
[1743920619415,22.51075624,120.55,120.54,0.063]
[1743920622415,41.58688981,120.55,120.54,0.063]
[1743920622621,5.8076,120.53,120.5,0.063]
[1743920622927,16.67405624,120.51,120.5,0.063]
[1743920626632,23.63405624,120.52,120.5,0.063]
[1743920628132,105.43405624,120.52,120.5,0.063]
[1743920631242,81.8,120.52,120.5,0.063]
[1743920654454,81.8,120.52,120.5,7.79629178]
[1743920657240,98.47405624,120.52,120.5,7.79629178]
[1743920657442,16.67405624,120.51,120.5,7.79629178]
[1743920659668,98.47405624,120.52,120.5,7.79629178]
[1743920670195,81.8,120.52,120.5,7.79629178]
[1743920686108,81.8,120.52,120.5,24.47034802]
[1743920686404,0.03,120.54,120.5,24.47034802]
[1743920688007,16.67405624,120.53,120.5,7.79629178]
[1743920695207,98.50405624,120.54,120.5,7.79629178]
[1743920700418,16.67405624,120.53,120.5,7.79629178]
[1743920706946,16.67405624,120.51,120.5,7.79629178]
[1743920708234,23.61405624,120.51,120.5,7.79629178]
[1743920710031,29.42265624,120.51,120.5,7.79629178]
[1743920718348,48.49878981,120.51,120.5,7.79629178]
[1743920719740,19.07613357,120.5,120.49,6.9599626]
[1743920720052,35.75018981,120.5,120.49,13.9199252]
[1743920720638,41.55928981,120.5,120.49,13.9199252]
[1743920723039,235.93928981,120.5,120.49,13.9199252]
[1743920724146,26.0,120.47,120.44,0.063]
[1743920724448,111.77235853,120.47,120.46,5.96858167]
[1743920724627,118.73235853,120.47,120.46,5.96858167]
[1743920725029,124.54285853,120.47,120.46,5.96858167]
[1743920725342,74.52068981,120.47,120.46,5.96858167]
[1743920725644,141.21691477,120.47,120.46,5.96858167]
[1743920726646,122.56726591,120.47,120.46,5.96858167]
[1743920727748,141.21691477,120.47,120.46,5.96858167]
[1743920729247,74.52068981,120.47,120.46,5.96858167]
[1743920733455,74.52068981,120.47,120.46,6.03158167]
[1743920734951,16.67405624,120.47,120.46,6.03158167]
[1743920735162,23.63405624,120.48,120.46,6.03158167]
[1743920740762,16.67405624,120.47,120.46,6.03158167]
[1743920755368,23.63405624,120.48,120.46,6.03158167]
[1743920759058,16.67405624,120.47,120.46,6.03158167]
[1743920759672,6.96,120.48,120.46,6.03158167]
[1743920760175,23.63405624,120.48,120.46,6.03158167]
[1743920763872,16.67405624,120.47,120.46,6.03158167]
[1743920770780,133.18691477,120.47,120.46,6.03158167]
[1743920771079,108.25691477,120.47,120.46,6.03158167]
[1743920779183,41.56068981,120.47,120.46,6.03158167]
[1743920779587,16.67405624,120.47,120.46,6.03158167]
[1743920779784,27.81149751,120.48,120.46,6.03158167]
[1743920786491,44.48555375,120.48,120.46,6.03158167]
[1743920790095,27.81149751,120.48,120.46,6.03158167]
[1743920791307,44.48555375,120.48,120.46,6.03158167]
[1743920799904,16.67405624,120.47,120.46,6.03158167]
[1743920800302,35.75018981,120.47,120.46,6.03158167]
[1743920800905,41.56068981,120.47,120.46,6.03158167]
[1743920801106,108.25691477,120.47,120.46,6.03158167]
[1743920807202,16.67405624,120.47,120.46,6.03158167]
[1743920807921,23.63405624,120.47,120.46,6.03158167]
[1743920817631,29.44455624,120.47,120.46,6.03158167]
[1743920818922,48.52068981,120.47,120.46,6.03158167]
[1743920819919,29.87104095,120.47,120.46,6.03158167]
[1743920822409,48.52068981,120.47,120.46,6.03158167]
[1743920823910,29.44455624,120.47,120.46,6.03158167]
[1743920824103,48.52068981,120.47,120.46,6.03158167]
[1743920827224,29.87104095,120.47,120.46,6.03158167]
[1743920827424,48.52068981,120.47,120.46,6.03158167]
[1743920843233,115.21691477,120.47,120.46,3.04218464]
[1743920843936,48.52068981,120.47,120.46,3.04218464]
[1743920844238,115.21691477,120.47,120.46,3.04218464]
[1743920845316,48.52068981,120.47,120.46,3.04218464]
[1743920845716,242.98068981,120.47,120.46,3.04218464]
[1743920846725,236.02068981,120.47,120.46,3.04218464]
[1743920846927,242.98068981,120.47,120.46,3.04218464]
[1743920850444,48.52068981,120.47,120.46,3.04218464]
[1743920858349,23.63405624,120.47,120.46,3.04218464]
[1743920858530,23.61405624,120.47,120.46,3.04218464]
[1743920862043,16.67405624,120.47,120.46,3.04218464]
[1743920863042,16.70405624,120.47,120.46,3.04218464]
[1743920863734,23.64405624,120.47,120.46,3.04218464]
[1743920864055,29.45455624,120.47,120.46,3.04218464]
[1743920864436,23.64405624,120.47,120.46,3.04218464]
[1743920868974,0.03,120.47,120.46,3.04218464]
[1743920871334,16.70405624,120.47,120.46,3.04218464]
[1743920874366,0.03,120.47,120.46,3.04218464]
[1743920874740,16.70405624,120.47,120.46,3.04218464]
[1743920877761,0.03,120.47,120.46,3.04218464]
[1743920878446,16.70405624,120.47,120.46,3.04218464]
[1743920879871,23.64405624,120.47,120.46,3.04218464]
[1743920884147,6.97,120.47,120.46,3.04218464]
[1743920885567,23.64405624,120.47,120.46,3.04218464]
[1743920887851,29.45455624,120.47,120.46,3.04218464]
[1743920890280,23.64405624,120.47,120.46,3.04218464]
[1743920893884,48.53068981,120.47,120.46,3.04218464]
[1743920902298,68.53068981,120.47,120.46,3.04218464]
[1743920902592,135.22691477,120.47,120.46,3.04218464]
[1743920903692,48.53068981,120.47,120.46,3.04218464]
[1743920909200,0.03,120.47,120.46,3.04218464]
[1743920909778,16.70405624,120.47,120.46,3.04218464]
[1743920913108,0.03,120.47,120.46,3.04218464]
[1743920916106,16.70405624,120.47,120.46,3.04218464]
[1743920924216,48.53068981,120.47,120.46,3.04218464]
[1743920932619,29.88104095,120.47,120.46,3.04218464]
[1743920933415,48.53068981,120.47,120.46,3.04218464]
[1743920938019,115.22691477,120.47,120.46,3.04218464]
[1743920939834,48.53068981,120.47,120.46,3.04218464]
[1743920944834,49.03068981,120.47,120.46,3.04218464]
[1743920949748,115.72691477,120.47,120.46,3.04218464]
[1743920952148,115.22691477,120.47,120.46,3.04218464]
[1743920952645,115.72691477,120.47,120.46,3.04218464]
[1743920957858,66.75765202,120.44,120.43,4.24100717]
[1743920958047,16.67405624,120.44,120.43,8.41901434]
[1743920959056,35.75018981,120.44,120.43,8.41901434]
[1743920960232,41.56218981,120.44,120.43,8.41901434]
[1743920969043,22.48605624,120.44,120.43,8.41901434]
[1743920969347,16.67405624,120.44,120.43,8.41901434]
[1743920970852,41.56218981,120.44,120.43,8.41901434]
[1743920973667,41.56218981,120.44,120.43,4.24100717]
[1743920975471,41.59218981,120.44,120.43,4.24100717]
[1743920976371,22.94254095,120.44,120.43,4.24100717]
[1743920979166,41.59218981,120.44,120.43,4.24100717]
[1743920983980,35.78018981,120.44,120.43,4.24100717]
[1743920984355,41.59218981,120.44,120.43,4.24100717]
[1743920989871,0.03,120.44,120.43,4.24100717]
[1743920993994,16.70405624,120.44,120.43,4.24100717]
[1743920994483,35.78018981,120.44,120.43,4.24100717]
[1743920996963,41.59218981,120.44,120.43,4.24100717]
[1743921001389,35.78018981,120.44,120.43,4.24100717]
[1743921002693,16.70405624,120.44,120.43,4.24100717]
[1743921002906,0.03,120.44,120.43,4.24100717]
[1743921013676,0.03,120.44,120.43,22.50996341]
[1743921031616,0.03,120.44,120.43,41.58609698]
[1743921034015,0.03,120.44,120.43,22.93644812]
[1743921035025,0.03,120.44,120.43,41.58609698]
[1743921037332,0.03,120.47,120.46,19.07613357]
[1743921037507,0.03,120.47,120.46,35.75018981]
[1743921039306,0.03,120.47,120.46,44.32888981]
[1743921040214,0.03,120.47,120.46,8.5787]
[1743921040413,0.03,120.47,120.46,25.25275624]
[1743921040922,0.03,120.47,120.46,18.31275624]
[1743921049514,0.03,120.47,120.46,22.49076341]
[1743921060857,0.03,120.47,120.46,22.91724812]
[1743921061063,0.03,120.47,120.46,41.56689698]
[1743921062040,0.03,120.47,120.46,48.06931423]
[1743921062459,0.03,120.55,120.47,19.07613357]
[1743921062765,0.03,120.55,120.53,16.67405624]
[1743921064643,0.03,120.55,120.53,20.54255425]
[1743921067156,0.03,120.55,120.53,39.61868782]
[1743921069251,0.03,120.55,120.53,20.54255425]
[1743921078578,0.03,120.55,120.53,3.86849801]
[1743921078876,18.25415624,120.55,120.53,3.86849801]
[1743921079978,24.06095624,120.55,120.53,3.86849801]
[1743921081569,16.70405624,120.54,120.53,3.86849801]
[1743921081968,22.51125624,120.54,120.53,3.86849801]
[1743921085278,41.58738981,120.54,120.53,1.53904954]
[1743921085582,47.66238981,120.54,120.53,0.37432444]
[1743921102690,41.58738981,120.54,120.53,0.37432444]
[1743921114211,41.58738981,120.54,120.53,0.43732444]
[1743921119408,41.58738981,120.54,120.53,3.57937047]
[1743921124113,22.93774095,120.54,120.53,3.57937047]
[1743921124314,41.58738981,120.54,120.53,3.57937047]
[1743921126811,22.51125624,120.54,120.53,3.57937047]
[1743921128302,16.70405624,120.54,120.53,3.57937047]
[1743921131228,22.51125624,120.54,120.53,3.57937047]
[1743921132323,108.28361477,120.54,120.53,3.57937047]
[1743921142610,89.63396591,120.54,120.53,3.57937047]
[1743921143331,108.28361477,120.54,120.53,3.57937047]
[1743921147409,41.58738981,120.54,120.53,3.57937047]
[1743921147917,22.51125624,120.54,120.53,3.57937047]
[1743921150125,16.70405624,120.54,120.53,3.57937047]
[1743921158944,0.03,120.54,120.53,3.57937047]
[1743921159247,16.70405624,120.54,120.53,3.57937047]
[1743921174951,0.03,120.54,120.53,3.57937047]
[1743921175149,0.03,120.54,120.53,10.20037047]
[1743921179957,16.70405624,120.54,120.53,3.57937047]
[1743921181539,115.22361477,120.54,120.53,3.57937047]
[1743921182450,96.57396591,120.54,120.53,3.57937047]
[1743921182750,29.45125624,120.54,120.53,3.57937047]
[1743921188459,23.64405624,120.54,120.53,3.57937047]
[1743921188646,16.70405624,120.54,120.53,3.57937047]
[1743921192069,0.03,120.54,120.53,3.57937047]
[1743921192884,16.70405624,120.54,120.53,3.57937047]
[1743921202666,0.03,120.54,120.53,3.57937047]
[1743921202876,0.03,120.54,120.53,20.25342671]
[1743921203474,0.03,120.54,120.53,3.57937047]
[1743921203650,0.03,120.54,120.53,20.25342671]
[1743921203976,0.03,120.54,120.53,3.57937047]
[1743921212067,16.70405624,120.54,120.53,3.57937047]
[1743921212271,22.51125624,120.54,120.53,3.57937047]
[1743921212581,108.28361477,120.54,120.53,3.57937047]
[1743921213978,108.28361477,120.54,120.52,3.16473342]
[1743921213979,19.07613357,120.53,120.52,3.16473342]
[1743921214167,41.55778981,120.53,120.52,6.32946684]
[1743921219084,41.55778981,120.53,120.51,3.16473342]
[1743921219269,26.0,120.5,120.49,2.53178674]
[1743921219463,49.61405624,120.5,120.49,13.27402916]
[1743921220185,55.42315624,120.5,120.49,13.27402916]
[1743921223494,74.49928981,120.5,120.49,13.27402916]
[1743921227364,74.49928981,120.5,120.48,2.53178674]
[1743921227571,26.0,120.47,120.46,1.58207204]
[1743921227771,42.67405624,120.47,120.46,6.13928816]
[1743921228873,48.48455624,120.47,120.46,6.13928816]
[1743921233000,134.25691477,120.47,120.46,6.13928816]
[1743921235812,134.25691477,120.47,120.45,1.51907204]
[1743921236111,42.69018981,120.46,120.45,1.82288646]
[1743921237921,203.20118981,120.46,120.44,0.71923912]
[1743921238097,186.52713357,120.46,120.45,5.90615217]
[1743921238288,203.20118981,120.46,120.44,0.063]
[1743921238488,16.67405624,120.45,120.44,0.063]
[1743921238888,22.48555624,120.45,120.44,0.063]
[1743921243313,41.56168981,120.45,120.43,0.063]
[1743921243607,190.45018981,120.44,120.42,0.063]
[1743921243911,16.67405624,120.43,120.42,0.063]
[1743921244113,39.07613357,120.42,120.41,0.063]
[1743921244304,197.39018981,120.42,120.4,0.063]
[1743921244620,35.75018981,120.41,120.4,0.063]
[1743921244794,16.67405624,120.41,120.4,0.063]
[1743921244993,134.7,120.42,120.4,0.063]
[1743921245387,23.61405624,120.44,120.41,8.0555]
[1743921246015,6.94,120.44,120.41,8.0555]
[1743921246312,23.61405624,120.44,120.41,8.0555]
[1743921246915,16.67405624,120.43,120.41,8.0555]
[1743921247092,16.67405624,120.42,120.41,8.0555]
[1743921253923,16.67405624,120.42,120.41,1.6513]
[1743921254531,16.67405624,120.42,120.4,0.063]
[1743921254707,16.67405624,120.41,120.4,0.063]
[1743921255022,5.813,120.42,120.4,0.063]
[1743921255205,6.94,120.44,120.4,0.063]
[1743921255527,16.67405624,120.43,120.4,0.063]
[1743921256428,16.67405624,120.43,120.41,0.063]
[1743921259127,98.47405624,120.43,120.41,0.063]
[1743921260000,105.43405624,120.43,120.41,0.063]
[1743921262913,16.67405624,120.42,120.41,0.063]
[1743921273125,22.48695624,120.42,120.41,0.063]
[1743921274527,22.91344095,120.42,120.41,0.063]
[1743921275011,16.67405624,120.41,120.4,0.063]
[1743921275637,42.67405624,120.38,120.37,0.063]
[1743921275816,49.61405624,120.38,120.37,0.063]
[1743921276418,55.42895624,120.38,120.37,0.063]
[1743921277336,55.85544095,120.38,120.37,0.063]
[1743921278818,74.50508981,120.38,120.37,0.063]
[1743921279020,26.0,120.34,120.28,64.329228]
[1743921279316,16.67405624,120.32,120.28,0.063]
[1743921281133,16.67405624,120.31,120.28,0.063]
[1743921281338,16.67405624,120.32,120.28,0.063]
[1743921281538,16.67405624,120.31,120.28,0.063]
[1743921281842,16.67405624,120.3,120.28,0.063]
[1743921282646,5.8174,120.33,120.28,0.063]
[1743921282647,16.67405624,120.31,120.28,0.063]
[1743921283250,16.67405624,120.33,120.28,16.73705624]
[1743921283434,81.8,120.31,120.3,16.67405624]
[1743921283638,81.8,120.31,120.3,22.90815624]
[1743921284650,81.8,120.31,120.3,6.2341]
[1743921286168,98.47405624,120.31,120.28,0.063]
[1743921287155,81.8,120.31,120.28,0.063]
[1743921288050,98.47405624,120.31,120.28,0.063]
[1743921288223,81.8,120.31,120.28,0.063]
[1743921288424,98.47405624,120.31,120.28,0.063]
[1743921291233,16.67405624,120.3,120.28,0.063]
[1743921292229,16.67405624,120.29,120.28,0.063]
[1743921292945,16.67405624,120.3,120.28,0.063]
[1743921293153,16.67405624,120.31,120.28,0.063]
[1743921293335,151.37405624,120.32,120.28,0.063]
[1743921294665,16.67405624,120.31,120.28,0.063]
[1743921301464,16.67405624,120.3,120.28,0.063]
[1743921314066,16.67405624,120.29,120.28,0.063]
[1743921317670,16.67405624,120.3,120.28,0.063]
[1743921321755,16.67405624,120.29,120.28,0.063]
[1743921325159,29.47325624,120.29,120.28,0.063]
[1743921331860,49.89974095,120.29,120.28,0.063]
[1743921332682,32.24668471,120.27,120.26,3.1468822]
[1743921332982,68.92074095,120.27,120.26,3.0208822]
[1743921335068,68.92074095,120.27,120.26,3.0838822]
[1743921335666,87.57038981,120.27,120.26,3.0838822]
[1743921335866,154.26661477,120.27,120.26,3.0838822]
[1743921336662,135.61696591,120.27,120.26,3.0838822]
[1743921336863,154.26661477,120.27,120.26,3.0838822]
[1743921340208,0.42648471,120.24,120.18,7.7365]
[1743921340510,16.67405624,120.2,120.15,24.47355624]
[1743921341076,16.67405624,120.21,120.16,16.67405624]
[1743921343202,16.67405624,120.22,120.17,16.67405624]
[1743921343502,16.67405624,120.22,120.18,16.67405624]
[1743921343711,81.8,120.19,120.17,16.67405624]
[1743921347500,81.8,120.19,120.15,7.7995]
[1743921347699,81.8,120.19,120.16,16.67405624]
[1743921348702,81.8,120.19,120.17,0.063]
[1743921354091,98.47405624,120.19,120.17,0.063]
[1743921354996,16.67405624,120.18,120.17,0.063]
[1743921355388,22.49855624,120.18,120.17,0.063]
[1743921355805,22.64071781,120.18,120.17,0.063]
[1743921356111,22.64071781,120.18,120.15,0.063]
[1743921356112,26.0,120.16,120.15,0.063]
[1743921356410,42.67405624,120.16,120.15,0.063]
[1743921358317,16.67405624,120.16,120.15,0.063]
[1743921360409,105.86912496,120.19,120.15,0.063]
[1743921360613,16.67405624,120.16,120.15,0.063]
[1743921362016,98.47405624,120.17,120.15,0.063]
[1743921363618,81.8,120.17,120.15,0.063]
[1743921363805,81.8,120.17,120.16,16.67405624]
[1743921364700,81.8,120.17,120.16,23.32095624]
[1743921365412,81.8,120.17,120.15,1.6774]
[1743921365911,81.8,120.17,120.15,0.063]
[1743921366118,98.47405624,120.17,120.15,0.063]
[1743921366812,81.8,120.17,120.15,0.063]
[1743921368497,98.47405624,120.17,120.15,0.063]
[1743921369617,16.67405624,120.16,120.15,0.063]
[1743921375199,81.8,120.17,120.15,0.063]
[1743921375421,98.47405624,120.17,120.15,0.063]
[1743921376528,16.67405624,120.16,120.15,0.063]
[1743921378232,23.65405624,120.16,120.15,0.063]
[1743921378929,29.47955624,120.16,120.15,0.063]
[1743921379138,29.62171781,120.16,120.15,0.063]
[1743921379709,29.90604095,120.16,120.15,0.063]
[1743921380227,50.06528981,120.16,120.15,0.063]
[1743921380431,26.0,120.13,120.07,24.83745624]
[1743921380632,16.67405624,120.11,120.07,24.83745624]
[1743921381330,16.67405624,120.11,120.07,1.5528]
[1743921381725,16.67405624,120.11,120.07,18.22685624]
[1743921383027,16.67405624,120.11,120.07,1.5528]
[1743921383849,81.8,120.1,120.07,1.5528]
[1743921385557,81.8,120.1,120.07,18.22685624]
[1743921388814,81.8,120.1,120.04,6.6736]
[1743921388815,81.8,120.05,120.04,0.063]
[1743921389016,23.91405624,120.05,120.04,0.063]
[1743921389240,7.24,120.05,120.04,0.063]
[1743921389733,7.26,120.08,120.04,0.063]
[1743921390337,16.67405624,120.08,120.04,0.063]
[1743921391028,16.67405624,120.06,120.04,0.063]
[1743921395043,22.50445624,120.06,120.04,0.063]
[1743921395459,16.67405624,120.06,120.04,0.063]
[1743921398572,16.67405624,120.05,120.04,0.063]
[1743921400973,104.30495624,120.05,120.04,0.063]
[1743921401440,98.47405624,120.05,120.04,0.063]
[1743921403557,111.44159825,120.05,120.04,0.063]
[1743921407677,94.76754201,120.05,120.04,26.063]
[1743921407849,94.76754201,120.05,120.04,42.73705624]
[1743921411179,12.96754201,120.05,120.04,42.73705624]
[1743921414878,12.96754201,120.05,120.04,26.063]
[1743921416065,12.96754201,120.05,120.04,42.73705624]
[1743921417977,12.96754201,120.05,120.04,26.063]
[1743921420690,12.96754201,120.05,120.04,42.73705624]
[1743921422087,12.96754201,120.05,120.04,16.73705624]
[1743921422682,12.96754201,120.05,120.04,35.3867051]
[1743921424185,12.96754201,120.05,120.04,26.063]
[1743921424368,12.96754201,120.05,120.04,0.063]
[1743921426192,12.96754201,120.05,120.04,16.73705624]
[1743921426389,12.96754201,120.05,120.04,0.063]
[1743921431292,29.64159825,120.05,120.04,0.063]
[1743921431990,12.96754201,120.05,120.04,0.063]
[1743921433996,29.64159825,120.05,120.04,0.063]
[1743921435790,12.96754201,120.05,120.04,0.063]
[1743921436794,35.47249825,120.05,120.04,0.063]
[1743921438195,35.61465982,120.05,120.04,0.063]
[1743921438385,140.63130442,120.05,120.02,3.2098822]
[1743921438700,16.81621781,120.03,120.02,3.2098822]
[1743921438896,24.05621781,120.03,120.02,3.2098822]
[1743921439999,24.34054095,120.03,120.02,3.2098822]
[1743921440296,41.80098859,120.03,120.02,3.2098822]
[1743921443004,26.14216157,119.99,119.94,12.84672847]
[1743921443198,26.14216157,119.99,119.92,1.5659]
[1743921443199,228.34,119.98,119.92,1.5659]
[1743921443387,16.67405624,119.96,119.92,1.5659]
[1743921444003,16.67405624,119.95,119.92,7.4028]
[1743921444302,7.24,119.94,119.91,5.8375]
[1743921444803,7.24,119.94,119.91,22.51155624]
[1743921446588,7.24,119.94,119.91,5.8375]
[1743921447501,7.24,119.94,119.91,22.51155624]
[1743921450911,7.24,119.94,119.92,16.67405624]
[1743921451105,7.24,119.94,119.93,16.67405624]
[1743921451407,319.59405624,119.98,119.93,16.67405624]
[1743921451408,7.24,119.97,119.93,16.67405624]
[1743921451626,319.59405624,119.98,119.93,16.67405624]
[1743921451906,319.59405624,119.98,119.94,5.8362]
[1743921452111,326.81405624,119.98,119.94,22.51025624]
[1743921452410,300.81405624,119.98,119.94,22.51025624]
[1743921452707,300.81405624,119.98,119.94,5.8362]
[1743921453412,284.14,119.98,119.94,5.8362]
[1743921453709,300.81405624,119.98,119.94,5.8362]
[1743921454816,300.81405624,119.98,119.94,5.8992]
[1743921456511,284.14,119.98,119.94,5.8992]
[1743921456701,284.14,119.98,119.94,22.57325624]
[1743921456891,300.81405624,119.98,119.94,5.8992]
[1743921460019,293.59405624,119.98,119.94,5.8992]
[1743921460204,300.81405624,119.98,119.94,5.8992]
[1743921460503,105.69405624,119.98,119.94,5.8992]
[1743921461825,89.02,119.98,119.94,24.18905624]
[1743921467120,89.02,119.98,119.95,16.67405624]
[1743921467617,81.8,119.98,119.95,16.67405624]
[1743921467823,81.8,119.98,119.96,5.8352]
[1743921472412,81.8,119.98,119.95,5.8357]
[1743921473526,98.47405624,119.98,119.95,5.8357]
[1743921473712,16.67405624,119.97,119.94,5.899]